[Event "Late-Titled-Tuesday-Blitz-April-23-2024"]
[Site "Chess.com"]
[Date "2024.04.23"]
[Round "5"]
[White "Naruna_Chan"]
[Black "ozates"]
[Result "0-1"]
[WhiteElo "2433"]
[BlackElo "2560"]
[TimeControl "180+1"]
[EndTime "14:54:46 PDT"]
[Termination "ozates won by resignation"]

1. e4 {[%clk 0:03:00.9]} 1... c5 {[%clk 0:02:58.1]} 2. c3 {[%clk 0:03:00.6]}
2... d5 {[%clk 0:02:53.7]} 3. exd5 {[%clk 0:03:00.6]} 3... Nf6 {[%clk
0:02:52.8]} 4. d4 {[%clk 0:03:00.8]} 4... cxd4 {[%clk 0:02:52.8]} 5. cxd4 {[%clk
0:03:00.2]} 5... Nxd5 {[%clk 0:02:52.1]} 6. Nf3 {[%clk 0:03:00.6]} 6... Nc6
{[%clk 0:02:52.4]} 7. Nc3 {[%clk 0:02:55.1]} 7... Bg4 {[%clk 0:02:51.4]} 8. Be2
{[%clk 0:02:54.7]} 8... e6 {[%clk 0:02:50.3]} 9. O-O {[%clk 0:02:53.3]} 9... Be7
{[%clk 0:02:49.5]} 10. h3 {[%clk 0:02:43]} 10... Bh5 {[%clk 0:02:47.8]} 11. g4
{[%clk 0:02:42.3]} 11... Bg6 {[%clk 0:02:46.9]} 12. Ne5 {[%clk 0:02:42.9]} 12...
Nxe5 {[%clk 0:02:45.7]} 13. dxe5 {[%clk 0:02:43.8]} 13... Nxc3 {[%clk
0:02:45.4]} 14. bxc3 {[%clk 0:02:39.1]} 14... O-O {[%clk 0:02:45.1]} 15. Qxd8
{[%clk 0:02:30.8]} 15... Rfxd8 {[%clk 0:02:44.2]} 16. Bf3 {[%clk 0:02:23.4]}
16... Rac8 {[%clk 0:02:31.9]} 17. Bxb7 {[%clk 0:02:10.6]} 17... Rxc3 {[%clk
0:02:25.5]} 18. Be3 {[%clk 0:02:08.2]} 18... h5 {[%clk 0:02:16.6]} 19. a4 {[%clk
0:01:52.3]} 19... hxg4 {[%clk 0:02:15.7]} 20. hxg4 {[%clk 0:01:51.9]} 20... Rc4
{[%clk 0:02:10.4]} 21. f3 {[%clk 0:01:37.8]} 21... a5 {[%clk 0:02:01.3]} 22. Ba6
{[%clk 0:01:17]} 22... Rc3 {[%clk 0:01:59.5]} 23. Bb6 {[%clk 0:00:45.9]} 23...
Rd5 {[%clk 0:01:49.8]} 24. Bb5 {[%clk 0:00:45.3]} 24... Rxe5 {[%clk 0:01:43.2]}
25. Bxa5 {[%clk 0:00:44]} 25... Bc5+ {[%clk 0:01:31]} 26. Kg2 {[%clk 0:00:39.7]}
26... Rc2+ {[%clk 0:01:27.8]} 27. Kg3 {[%clk 0:00:40.3]} 27... Re3 {[%clk
0:01:17.5]} 28. Rac1 {[%clk 0:00:37.9]} 28... Bd6+ {[%clk 0:01:17.1]} 0-1

[Event "Late-Titled-Tuesday-Blitz-April-23-2024"]
[Site "Chess.com"]
[Date "2024.04.23"]
[Round "5"]
[White "DuleMudule"]
[Black "SahibSinghKnight"]
[Result "0-1"]
[WhiteElo "2812"]
[BlackElo "2646"]
[TimeControl "180+1"]
[EndTime "14:55:01 PDT"]
[Termination "SahibSinghKnight won on time"]

1. d4 {[%clk 0:03:00.9]} 1... e6 {[%clk 0:02:59.2]} 2. e4 {[%clk 0:03:00.3]}
2... d5 {[%clk 0:02:59.4]} 3. Nc3 {[%clk 0:03:00.7]} 3... Nf6 {[%clk 0:02:58.8]}
4. e5 {[%clk 0:03:01.2]} 4... Nfd7 {[%clk 0:02:59.1]} 5. f4 {[%clk 0:03:02.1]}
5... c5 {[%clk 0:02:58.8]} 6. Nf3 {[%clk 0:03:02.8]} 6... Nc6 {[%clk 0:02:58.9]}
7. Be3 {[%clk 0:03:03.4]} 7... Be7 {[%clk 0:02:57.2]} 8. Bb5 {[%clk 0:03:01.5]}
8... O-O {[%clk 0:02:52.4]} 9. O-O {[%clk 0:03:01.4]} 9... a6 {[%clk 0:02:43.1]}
10. Bxc6 {[%clk 0:03:01.3]} 10... bxc6 {[%clk 0:02:43.6]} 11. Na4 {[%clk
0:02:59.1]} 11... cxd4 {[%clk 0:02:41.8]} 12. Nxd4 {[%clk 0:03:00]} 12... Qc7
{[%clk 0:02:40.2]} 13. c3 {[%clk 0:02:49]} 13... c5 {[%clk 0:02:40.1]} 14. Nf3
{[%clk 0:02:44.7]} 14... Bb7 {[%clk 0:02:37.1]} 15. b4 {[%clk 0:02:35]} 15... d4
{[%clk 0:02:28.7]} 16. cxd4 {[%clk 0:02:29.6]} 16... cxb4 {[%clk 0:02:28.5]} 17.
Rc1 {[%clk 0:02:21.1]} 17... Qa5 {[%clk 0:02:22.4]} 18. Nc5 {[%clk 0:02:16.3]}
18... Nxc5 {[%clk 0:02:18.6]} 19. dxc5 {[%clk 0:02:17.2]} 19... Rac8 {[%clk
0:02:19.2]} 20. Nd2 {[%clk 0:01:41.1]} 20... Bxc5 {[%clk 0:02:09.4]} 21. Rxc5
{[%clk 0:01:28.4]} 21... Rxc5 {[%clk 0:02:10.3]} 22. Nb3 {[%clk 0:01:28.8]}
22... Qxa2 {[%clk 0:02:10.5]} 23. Rf2 {[%clk 0:01:28.4]} 23... Rd5 {[%clk
0:02:09.1]} 24. Nd4 {[%clk 0:00:54.4]} 24... Qa3 {[%clk 0:02:01.6]} 25. Qe1
{[%clk 0:00:46.5]} 25... Rfd8 {[%clk 0:01:58.2]} 26. Rd2 {[%clk 0:00:45.8]}
26... Qc3 {[%clk 0:01:54.4]} 27. Qf2 {[%clk 0:00:38.5]} 27... Qc1+ {[%clk
0:01:50.4]} 28. Qf1 {[%clk 0:00:37]} 28... Qxf1+ {[%clk 0:01:50]} 29. Kxf1
{[%clk 0:00:37.9]} 29... a5 {[%clk 0:01:45.9]} 30. Kf2 {[%clk 0:00:29.7]} 30...
a4 {[%clk 0:01:45.6]} 0-1

[Event "Late-Titled-Tuesday-Blitz-April-23-2024"]
[Site "Chess.com"]
[Date "2024.04.23"]
[Round "5"]
[White "Narek_Ghimoyan"]
[Black "Statham_01"]
[Result "1-0"]
[WhiteElo "2448"]
[BlackElo "2539"]
[TimeControl "180+1"]
[EndTime "14:55:04 PDT"]
[Termination "Narek_Ghimoyan won on time"]

1. d4 {[%clk 0:03:00.9]} 1... Nf6 {[%clk 0:02:58.8]} 2. c4 {[%clk 0:02:55.4]}
2... e6 {[%clk 0:02:58.3]} 3. Nf3 {[%clk 0:02:55.9]} 3... d5 {[%clk 0:02:57.7]}
4. Nc3 {[%clk 0:02:56.5]} 4... c6 {[%clk 0:02:56.9]} 5. e3 {[%clk 0:02:55.8]}
5... Nbd7 {[%clk 0:02:56.3]} 6. Bd3 {[%clk 0:02:56.4]} 6... Bd6 {[%clk
0:02:55.5]} 7. e4 {[%clk 0:02:56]} 7... dxe4 {[%clk 0:02:54.4]} 8. Nxe4 {[%clk
0:02:56.9]} 8... Nxe4 {[%clk 0:02:55]} 9. Bxe4 {[%clk 0:02:57.5]} 9... Nf6
{[%clk 0:02:55.7]} 10. Bc2 {[%clk 0:02:58.1]} 10... h6 {[%clk 0:02:54.7]} 11.
O-O {[%clk 0:02:57.2]} 11... b6 {[%clk 0:02:51.7]} 12. b3 {[%clk 0:02:57.1]}
12... Bb7 {[%clk 0:02:51.6]} 13. Bb2 {[%clk 0:02:57.7]} 13... Qc7 {[%clk
0:02:50.9]} 14. Qe2 {[%clk 0:02:57.5]} 14... O-O-O {[%clk 0:02:46.4]} 15. a3
{[%clk 0:02:54.3]} 15... Rhg8 {[%clk 0:02:43]} 16. b4 {[%clk 0:02:53.7]} 16...
c5 {[%clk 0:02:20.6]} 17. dxc5 {[%clk 0:02:35.6]} 17... bxc5 {[%clk 0:02:21.5]}
18. bxc5 {[%clk 0:02:36.4]} 18... Bf4 {[%clk 0:02:07.2]} 19. Bxf6 {[%clk
0:02:33.3]} 19... gxf6 {[%clk 0:01:49.4]} 20. Be4 {[%clk 0:02:32.6]} 20... Rg4
{[%clk 0:01:16.5]} 21. Bxb7+ {[%clk 0:02:27.8]} 21... Qxb7 {[%clk 0:01:17.4]}
22. Rab1 {[%clk 0:02:21.3]} 22... Qc6 {[%clk 0:01:13.8]} 23. g3 {[%clk
0:02:21.3]} 23... Rg7 {[%clk 0:00:47.8]} 24. Rfd1 {[%clk 0:02:15.4]} 24... Rxd1+
{[%clk 0:00:43.2]} 25. Qxd1 {[%clk 0:02:14.8]} 25... Bc7 {[%clk 0:00:40.5]} 26.
Nd4 {[%clk 0:02:06.6]} 26... Qxc5 {[%clk 0:00:35.8]} 27. Nb5 {[%clk 0:02:01.1]}
27... Bb6 {[%clk 0:00:27.1]} 28. Nd6+ {[%clk 0:02:00.3]} 28... Kb8 {[%clk
0:00:18.5]} 29. Ne4 {[%clk 0:02:00.1]} 29... Qxc4 {[%clk 0:00:13.1]} 30. Qd8+
{[%clk 0:01:46.9]} 30... Qc8 {[%clk 0:00:13.2]} 31. Qxf6 {[%clk 0:01:45.8]}
31... Rg4 {[%clk 0:00:09.7]} 32. Nd6 {[%clk 0:01:42.2]} 32... Qc2 {[%clk
0:00:06.9]} 33. Qd8+ {[%clk 0:01:41.3]} 1-0

[Event "Late-Titled-Tuesday-Blitz-April-23-2024"]
[Site "Chess.com"]
[Date "2024.04.23"]
[Round "5"]
[White "gmcorrales"]
[Black "vladoboch"]
[Result "1-0"]
[WhiteElo "2854"]
[BlackElo "2512"]
[TimeControl "180+1"]
[EndTime "14:55:09 PDT"]
[Termination "gmcorrales won by resignation"]

1. e4 {[%clk 0:03:00.9]} 1... e5 {[%clk 0:02:58.9]} 2. f4 {[%clk 0:02:58.4]}
2... exf4 {[%clk 0:02:58.7]} 3. Nf3 {[%clk 0:02:58.3]} 3... Nf6 {[%clk
0:02:57.5]} 4. Nc3 {[%clk 0:02:56.4]} 4... Nc6 {[%clk 0:02:51.2]} 5. Bb5 {[%clk
0:02:48.2]} 5... d5 {[%clk 0:02:49]} 6. e5 {[%clk 0:02:45]} 6... Nh5 {[%clk
0:02:48.4]} 7. O-O {[%clk 0:02:42.9]} 7... Bg4 {[%clk 0:02:42.9]} 8. h3 {[%clk
0:02:39.8]} 8... Be6 {[%clk 0:02:42.9]} 9. Nd4 {[%clk 0:02:38.7]} 9... Bc5
{[%clk 0:02:39.5]} 10. Qxh5 {[%clk 0:02:32.2]} 10... Bxd4+ {[%clk 0:02:39.2]}
11. Kh1 {[%clk 0:02:32.9]} 11... O-O {[%clk 0:02:28.4]} 12. Bxc6 {[%clk
0:02:31.7]} 12... bxc6 {[%clk 0:02:27.3]} 13. Rxf4 {[%clk 0:02:31.9]} 13... Bc5
{[%clk 0:02:08.8]} 14. d4 {[%clk 0:02:28]} 14... Be7 {[%clk 0:02:08.9]} 15. Be3
{[%clk 0:02:25.2]} 15... h6 {[%clk 0:01:50.4]} 16. Raf1 {[%clk 0:02:24.3]} 16...
Bg5 {[%clk 0:01:50]} 17. R4f3 {[%clk 0:02:17.4]} 17... g6 {[%clk 0:01:49.8]} 18.
Bxg5 {[%clk 0:02:16.9]} 18... Qxg5 {[%clk 0:01:38.5]} 19. Qxg5 {[%clk
0:02:16.8]} 19... hxg5 {[%clk 0:01:39.4]} 20. Na4 {[%clk 0:02:17.2]} 20... Bf5
{[%clk 0:01:36.3]} 21. Rc3 {[%clk 0:02:17.1]} 21... Kg7 {[%clk 0:01:25.6]} 22.
g4 {[%clk 0:02:11.8]} 22... Be4+ {[%clk 0:01:25.5]} 23. Kg1 {[%clk 0:02:12]}
23... Rh8 {[%clk 0:01:25.3]} 24. Rf6 {[%clk 0:02:10]} 24... Rab8 {[%clk
0:01:21.6]} 25. a3 {[%clk 0:02:07.8]} 25... c5 {[%clk 0:01:12.1]} 26. Nxc5
{[%clk 0:01:43.4]} 26... Rxb2 {[%clk 0:01:10.8]} 27. Nxe4 {[%clk 0:01:35.5]}
27... dxe4 {[%clk 0:01:09.7]} 28. Rxc7 {[%clk 0:01:35.3]} 28... Rf8 {[%clk
0:00:59]} 29. Kf2 {[%clk 0:01:24]} 29... Ra2 {[%clk 0:00:56.9]} 30. Ke3 {[%clk
0:01:23.7]} 30... Rxa3+ {[%clk 0:00:56.4]} 31. c3 {[%clk 0:01:22.3]} 31... a6
{[%clk 0:00:53]} 32. Kxe4 {[%clk 0:01:22.2]} 32... a5 {[%clk 0:00:53.6]} 33. Ra6
{[%clk 0:01:20.1]} 33... a4 {[%clk 0:00:54.5]} 34. Raa7 {[%clk 0:01:20.1]} 34...
Ra1 {[%clk 0:00:53.6]} 35. Kd5 {[%clk 0:01:14.9]} 35... Kg8 {[%clk 0:00:47.5]}
36. Kc4 {[%clk 0:01:13.3]} 36... a3 {[%clk 0:00:47]} 37. e6 {[%clk 0:01:13.2]}
37... a2 {[%clk 0:00:43.9]} 38. e7 {[%clk 0:01:12.5]} 38... Re8 {[%clk
0:00:44.2]} 39. d5 {[%clk 0:01:11.8]} 39... Re1 {[%clk 0:00:41.3]} 40. Rxa2
{[%clk 0:01:10.7]} 40... R1xe7 {[%clk 0:00:41.2]} 41. Rxe7 {[%clk 0:01:10.2]}
41... Rxe7 {[%clk 0:00:41.7]} 42. d6 {[%clk 0:01:10.8]} 42... Rd7 {[%clk
0:00:40.1]} 43. Kd5 {[%clk 0:01:10.8]} 1-0

[Event "Late-Titled-Tuesday-Blitz-April-23-2024"]
[Site "Chess.com"]
[Date "2024.04.23"]
[Round "5"]
[White "ReadySkate"]
[Black "DrVelja"]
[Result "1-0"]
[WhiteElo "2697"]
[BlackElo "2964"]
[TimeControl "180+1"]
[EndTime "14:55:11 PDT"]
[Termination "ReadySkate won on time"]

1. d4 {[%clk 0:03:00.9]} 1... Nf6 {[%clk 0:03:00.1]} 2. c4 {[%clk 0:03:01.3]}
2... e6 {[%clk 0:03:00]} 3. Nc3 {[%clk 0:03:01.9]} 3... Bb4 {[%clk 0:02:59.3]}
4. f3 {[%clk 0:03:02.6]} 4... c5 {[%clk 0:02:55.9]} 5. d5 {[%clk 0:03:02.9]}
5... b5 {[%clk 0:02:45.5]} 6. e4 {[%clk 0:03:02.8]} 6... d6 {[%clk 0:02:45.7]}
7. Bd2 {[%clk 0:03:02.5]} 7... bxc4 {[%clk 0:02:34.2]} 8. Bxc4 {[%clk
0:03:00.3]} 8... O-O {[%clk 0:02:27.6]} 9. Nge2 {[%clk 0:02:58.7]} 9... Ba6
{[%clk 0:02:25.3]} 10. Bxa6 {[%clk 0:02:57.8]} 10... Nxa6 {[%clk 0:02:26.2]} 11.
Nf4 {[%clk 0:02:54.4]} 11... e5 {[%clk 0:02:19.5]} 12. Nfe2 {[%clk 0:02:53.1]}
12... Nc7 {[%clk 0:02:11]} 13. O-O {[%clk 0:02:51.8]} 13... Rb8 {[%clk
0:02:11.6]} 14. Bg5 {[%clk 0:02:51.5]} 14... h6 {[%clk 0:02:06.9]} 15. Bh4
{[%clk 0:02:51.4]} 15... g5 {[%clk 0:01:38]} 16. Bf2 {[%clk 0:02:49.8]} 16...
Nh5 {[%clk 0:01:36.3]} 17. Be3 {[%clk 0:02:42.7]} 17... Qd7 {[%clk 0:01:26.7]}
18. g4 {[%clk 0:02:36.4]} 18... Nf4 {[%clk 0:01:22.1]} 19. Ng3 {[%clk
0:02:35.5]} 19... Bxc3 {[%clk 0:01:05.4]} 20. bxc3 {[%clk 0:02:34.4]} 20... Ne8
{[%clk 0:01:04.7]} 21. Bxf4 {[%clk 0:02:32.8]} 21... exf4 {[%clk 0:01:01.7]} 22.
Nf5 {[%clk 0:02:33.3]} 22... Ng7 {[%clk 0:00:47.6]} 23. Nxh6+ {[%clk 0:02:21.4]}
23... Kh7 {[%clk 0:00:48.1]} 24. Nf5 {[%clk 0:02:21.4]} 24... Nxf5 {[%clk
0:00:48.9]} 25. gxf5 {[%clk 0:02:13.9]} 25... Qe7 {[%clk 0:00:48.8]} 26. Rb1
{[%clk 0:02:07.3]} 26... Qf6 {[%clk 0:00:44.2]} 27. Qd2 {[%clk 0:02:04.3]} 27...
Kg7 {[%clk 0:00:43.5]} 28. Kh1 {[%clk 0:02:01.8]} 28... Rh8 {[%clk 0:00:43.1]}
29. Rg1 {[%clk 0:01:59.4]} 29... Rxb1 {[%clk 0:00:42.6]} 30. Rxb1 {[%clk
0:02:00.3]} 30... Rh3 {[%clk 0:00:41.7]} 31. Qg2 {[%clk 0:01:58.6]} 31... Qh6
{[%clk 0:00:38.4]} 32. e5 {[%clk 0:01:46.3]} 32... dxe5 {[%clk 0:00:34.1]} 33.
d6 {[%clk 0:01:46.2]} 33... Rg3 {[%clk 0:00:20.3]} 34. Qe2 {[%clk 0:01:44.3]}
34... e4 {[%clk 0:00:14.1]} 35. d7 {[%clk 0:01:37.1]} 1-0

[Event "Late-Titled-Tuesday-Blitz-April-23-2024"]
[Site "Chess.com"]
[Date "2024.04.23"]
[Round "5"]
[White "Arigu07"]
[Black "HipsterChess22"]
[Result "1-0"]
[WhiteElo "2568"]
[BlackElo "2212"]
[TimeControl "180+1"]
[EndTime "14:55:16 PDT"]
[Termination "Arigu07 won on time"]

1. a3 {[%clk 0:03:00.9]} 1... d5 {[%clk 0:02:54.9]} 2. e3 {[%clk 0:03:00.2]}
2... e5 {[%clk 0:02:52.5]} 3. d4 {[%clk 0:02:59.1]} 3... e4 {[%clk 0:02:49.2]}
4. c3 {[%clk 0:02:58.9]} 4... Nf6 {[%clk 0:02:47.4]} 5. c4 {[%clk 0:02:59.3]}
5... c6 {[%clk 0:02:45.5]} 6. Nc3 {[%clk 0:02:58.9]} 6... Be7 {[%clk 0:02:38.4]}
7. Nge2 {[%clk 0:02:55.2]} 7... O-O {[%clk 0:02:37]} 8. Nf4 {[%clk 0:02:53]}
8... g5 {[%clk 0:02:32.1]} 9. Nh5 {[%clk 0:02:52.8]} 9... Bf5 {[%clk 0:02:18.9]}
10. h4 {[%clk 0:02:44.8]} 10... g4 {[%clk 0:02:15.5]} 11. Nf4 {[%clk 0:02:38.4]}
11... h5 {[%clk 0:02:07.6]} 12. Qb3 {[%clk 0:02:36.9]} 12... Qb6 {[%clk
0:01:49.3]} 13. Qxb6 {[%clk 0:02:34.3]} 13... axb6 {[%clk 0:01:50.2]} 14. cxd5
{[%clk 0:02:35.1]} 14... b5 {[%clk 0:01:18.9]} 15. Rb1 {[%clk 0:02:20.1]} 15...
b4 {[%clk 0:01:16.3]} 16. axb4 {[%clk 0:02:20]} 16... Bxb4 {[%clk 0:01:17.2]}
17. dxc6 {[%clk 0:02:20.4]} 17... Nxc6 {[%clk 0:01:15.2]} 18. Bd2 {[%clk
0:02:20.9]} 18... Bd6 {[%clk 0:01:02.2]} 19. Nfd5 {[%clk 0:02:09.8]} 19... Nxd5
{[%clk 0:00:56.9]} 20. Nxd5 {[%clk 0:02:10.7]} 20... Be6 {[%clk 0:00:45.1]} 21.
Nf6+ {[%clk 0:02:04.7]} 21... Kg7 {[%clk 0:00:31.8]} 22. Nxh5+ {[%clk
0:02:05.1]} 22... Kg6 {[%clk 0:00:27.7]} 23. Ng3 {[%clk 0:02:05.6]} 23... Bxg3
{[%clk 0:00:23.9]} 24. fxg3 {[%clk 0:02:04.6]} 24... Ra2 {[%clk 0:00:15.1]} 25.
Be2 {[%clk 0:01:52.1]} 25... f5 {[%clk 0:00:14.2]} 26. Kf2 {[%clk 0:01:50.4]}
26... Ne7 {[%clk 0:00:13.1]} 27. Rhc1 {[%clk 0:01:46.4]} 27... Rc8 {[%clk
0:00:10.9]} 28. Rxc8 {[%clk 0:01:40.4]} 28... Bxc8 {[%clk 0:00:11.8]} 29. Bc4
{[%clk 0:01:40.2]} 29... Ra8 {[%clk 0:00:09.3]} 30. Rc1 {[%clk 0:01:38.4]} 30...
Kf6 {[%clk 0:00:07.8]} 31. d5 {[%clk 0:01:35.8]} 31... Bd7 {[%clk 0:00:02.3]}
32. Bc3+ {[%clk 0:01:36.1]} 32... Kg6 {[%clk 0:00:01.8]} 33. Bb4 {[%clk
0:01:27.8]} 1-0

[Event "Late-Titled-Tuesday-Blitz-April-23-2024"]
[Site "Chess.com"]
[Date "2024.04.23"]
[Round "5"]
[White "Brahianzevich"]
[Black "lamomiajunior"]
[Result "0-1"]
[WhiteElo "2480"]
[BlackElo "2746"]
[TimeControl "180+1"]
[EndTime "14:55:19 PDT"]
[Termination "lamomiajunior won by checkmate"]

1. e4 {[%clk 0:02:58.5]} 1... c5 {[%clk 0:03:00.3]} 2. Nf3 {[%clk 0:02:53.5]}
2... d6 {[%clk 0:03:00.6]} 3. d4 {[%clk 0:02:53.2]} 3... cxd4 {[%clk 0:03:01.5]}
4. Nxd4 {[%clk 0:02:53.9]} 4... Nf6 {[%clk 0:03:02]} 5. Nc3 {[%clk 0:02:54.5]}
5... a6 {[%clk 0:03:02.5]} 6. Bg5 {[%clk 0:02:54.6]} 6... Nc6 {[%clk 0:03:02]}
7. Qd2 {[%clk 0:02:27.7]} 7... Bd7 {[%clk 0:02:58.1]} 8. O-O-O {[%clk
0:02:26.2]} 8... e6 {[%clk 0:02:55.8]} 9. f4 {[%clk 0:02:25.9]} 9... Be7 {[%clk
0:02:51.2]} 10. Nf3 {[%clk 0:02:14]} 10... Qa5 {[%clk 0:02:43.3]} 11. Kb1 {[%clk
0:02:07.6]} 11... O-O-O {[%clk 0:02:33.5]} 12. Bxf6 {[%clk 0:01:48.3]} 12...
Bxf6 {[%clk 0:02:26.6]} 13. Ne2 {[%clk 0:01:35.5]} 13... Qxd2 {[%clk 0:02:24]}
14. Rxd2 {[%clk 0:01:36.4]} 14... Kc7 {[%clk 0:02:21.3]} 15. g3 {[%clk
0:01:32.1]} 15... h5 {[%clk 0:02:12.7]} 16. Bg2 {[%clk 0:01:29.7]} 16... h4
{[%clk 0:02:09.5]} 17. Rhd1 {[%clk 0:01:21.4]} 17... Bc8 {[%clk 0:02:06.9]} 18.
g4 {[%clk 0:01:13.9]} 18... g6 {[%clk 0:02:01.8]} 19. h3 {[%clk 0:01:12.8]}
19... Na5 {[%clk 0:01:51.5]} 20. b3 {[%clk 0:01:07.9]} 20... Nc6 {[%clk
0:01:49]} 21. Ned4 {[%clk 0:00:47.3]} 21... Nxd4 {[%clk 0:01:47.7]} 22. Nxd4
{[%clk 0:00:47.5]} 22... b5 {[%clk 0:01:45.4]} 23. Re2 {[%clk 0:00:12.4]} 23...
Bb7 {[%clk 0:01:43.4]} 24. c3 {[%clk 0:00:09.7]} 24... Kb6 {[%clk 0:01:41]} 25.
a3 {[%clk 0:00:08.1]} 25... Rc8 {[%clk 0:01:39.5]} 26. Kb2 {[%clk 0:00:08.4]}
26... Rhd8 {[%clk 0:01:40.1]} 27. Rd3 {[%clk 0:00:08]} 27... a5 {[%clk
0:01:39.3]} 28. g5 {[%clk 0:00:07.8]} 28... Bg7 {[%clk 0:01:39]} 29. e5 {[%clk
0:00:02.3]} 29... Bxg2 {[%clk 0:01:37.3]} 30. Rxg2 {[%clk 0:00:02.4]} 30... dxe5
{[%clk 0:01:37.8]} 31. fxe5 {[%clk 0:00:03.3]} 31... Bxe5 {[%clk 0:01:37.8]} 32.
Rg4 {[%clk 0:00:04.2]} 32... b4 {[%clk 0:01:35.7]} 33. axb4 {[%clk 0:00:04.1]}
33... axb4 {[%clk 0:01:36.6]} 34. Rxh4 {[%clk 0:00:03.7]} 34... bxc3+ {[%clk
0:01:34.7]} 35. Kc2 {[%clk 0:00:03.4]} 35... Ra8 {[%clk 0:01:31.7]} 36. Re4
{[%clk 0:00:03.2]} 36... Ra2+ {[%clk 0:01:29.4]} 37. Kxc3 {[%clk 0:00:03.8]}
37... Rc8+ {[%clk 0:01:27.3]} 38. Kb4 {[%clk 0:00:04.3]} 38... Bd6# {[%clk
0:01:27.7]} 0-1

[Event "Late-Titled-Tuesday-Blitz-April-23-2024"]
[Site "Chess.com"]
[Date "2024.04.23"]
[Round "5"]
[White "kleber2007"]
[Black "Janh4"]
[Result "1-0"]
[WhiteElo "2442"]
[BlackElo "2207"]
[TimeControl "180+1"]
[EndTime "14:55:20 PDT"]
[Termination "kleber2007 won by resignation"]

1. Nf3 {[%clk 0:03:00.9]} 1... d5 {[%clk 0:02:58.8]} 2. g3 {[%clk 0:03:00.9]}
2... Nc6 {[%clk 0:02:55.7]} 3. d4 {[%clk 0:03:00]} 3... Bf5 {[%clk 0:02:55.8]}
4. Bg2 {[%clk 0:02:59.8]} 4... e6 {[%clk 0:02:56]} 5. c4 {[%clk 0:02:56.8]} 5...
Nf6 {[%clk 0:02:55.5]} 6. O-O {[%clk 0:02:51.6]} 6... Be7 {[%clk 0:02:55]} 7.
Ne5 {[%clk 0:02:51.5]} 7... O-O {[%clk 0:02:38.9]} 8. Nc3 {[%clk 0:02:49.1]}
8... Nxe5 {[%clk 0:02:30.4]} 9. dxe5 {[%clk 0:02:49]} 9... Ne4 {[%clk
0:02:28.1]} 10. cxd5 {[%clk 0:02:48.5]} 10... Nxc3 {[%clk 0:02:24.8]} 11. bxc3
{[%clk 0:02:46.5]} 11... exd5 {[%clk 0:02:24.8]} 12. Qxd5 {[%clk 0:02:44.3]}
12... c6 {[%clk 0:02:21.8]} 13. Qxd8 {[%clk 0:02:28.1]} 13... Rfxd8 {[%clk
0:02:19.9]} 14. Be3 {[%clk 0:02:28.5]} 14... Be6 {[%clk 0:02:05.8]} 15. a4
{[%clk 0:02:21.8]} 15... Bc4 {[%clk 0:02:05.6]} 16. Bf3 {[%clk 0:02:15]} 16...
a6 {[%clk 0:01:40.4]} 17. a5 {[%clk 0:02:05.6]} 17... Rd7 {[%clk 0:01:37.8]} 18.
Rab1 {[%clk 0:01:59.3]} 18... Bd8 {[%clk 0:01:17.3]} 19. Bb6 {[%clk 0:01:51.3]}
19... Bg5 {[%clk 0:00:49.4]} 20. Bg4 {[%clk 0:01:46.8]} 20... Re7 {[%clk
0:00:41.8]} 21. f4 {[%clk 0:01:43.3]} 21... Bh6 {[%clk 0:00:41.9]} 22. Bc5
{[%clk 0:01:40.8]} 22... Ree8 {[%clk 0:00:29.9]} 23. Rxb7 {[%clk 0:01:37]} 23...
f5 {[%clk 0:00:30.2]} 24. Bxf5 {[%clk 0:01:24.3]} 24... Bxe2 {[%clk 0:00:29.6]}
25. Rfb1 {[%clk 0:01:23.1]} 25... Bb5 {[%clk 0:00:25.9]} 26. Rd1 {[%clk
0:01:19.9]} 26... g6 {[%clk 0:00:25.3]} 27. Bg4 {[%clk 0:01:11.3]} 27... Rad8
{[%clk 0:00:16.5]} 28. Rdd7 {[%clk 0:01:10.8]} 28... Rxd7 {[%clk 0:00:16.4]} 29.
Bxd7 {[%clk 0:01:08.7]} 29... Rd8 {[%clk 0:00:12.8]} 30. e6 {[%clk 0:01:07.7]}
1-0

[Event "Late-Titled-Tuesday-Blitz-April-23-2024"]
[Site "Chess.com"]
[Date "2024.04.23"]
[Round "5"]
[White "ferrufino64"]
[Black "NM_Koval"]
[Result "1-0"]
[WhiteElo "2302"]
[BlackElo "2165"]
[TimeControl "180+1"]
[EndTime "14:55:23 PDT"]
[Termination "ferrufino64 won by resignation"]

1. e4 {[%clk 0:02:55.8]} 1... c5 {[%clk 0:02:59.3]} 2. Nf3 {[%clk 0:02:55.6]}
2... d6 {[%clk 0:02:59.4]} 3. d4 {[%clk 0:02:56.3]} 3... cxd4 {[%clk 0:03:00.1]}
4. Nxd4 {[%clk 0:02:56.8]} 4... Nf6 {[%clk 0:03:00.4]} 5. Nc3 {[%clk 0:02:57.5]}
5... g6 {[%clk 0:03:00.7]} 6. Be3 {[%clk 0:02:57.7]} 6... Bg7 {[%clk 0:03:01]}
7. f3 {[%clk 0:02:58.5]} 7... O-O {[%clk 0:03:01.2]} 8. Qd2 {[%clk 0:02:59.2]}
8... Nc6 {[%clk 0:03:01.1]} 9. g4 {[%clk 0:02:59.9]} 9... Bd7 {[%clk 0:02:57]}
10. h4 {[%clk 0:03:00.1]} 10... Rc8 {[%clk 0:02:56.3]} 11. h5 {[%clk 0:03:00.3]}
11... Ne5 {[%clk 0:02:55.5]} 12. Bh6 {[%clk 0:02:52.7]} 12... Bxh6 {[%clk
0:02:52.6]} 13. Qxh6 {[%clk 0:02:53.2]} 13... Rxc3 {[%clk 0:02:52.1]} 14. bxc3
{[%clk 0:02:52]} 14... Qa5 {[%clk 0:02:51.9]} 15. Kd2 {[%clk 0:02:51.1]} 15...
Rc8 {[%clk 0:02:49]} 16. Qe3 {[%clk 0:02:43.5]} 16... Bxg4 {[%clk 0:02:22.1]}
17. hxg6 {[%clk 0:02:31.5]} 17... fxg6 {[%clk 0:02:10.3]} 18. fxg4 {[%clk
0:02:10.8]} 18... Nxe4+ {[%clk 0:02:07.5]} 19. Qxe4 {[%clk 0:02:09.3]} 19...
Qxc3+ {[%clk 0:02:06.1]} 20. Ke2 {[%clk 0:02:01.2]} 20... Qxa1 {[%clk
0:02:04.9]} 21. Qd5+ {[%clk 0:01:48.4]} 21... Kh8 {[%clk 0:02:01.6]} 22. g5
{[%clk 0:01:32.2]} 22... Qc3 {[%clk 0:01:42.7]} 23. Rh3 {[%clk 0:01:22.6]} 23...
Qb2 {[%clk 0:01:23.1]} 24. Rb3 {[%clk 0:01:10.3]} 24... Qc1 {[%clk 0:01:20.2]}
25. Bh3 {[%clk 0:01:00.9]} 25... Rf8 {[%clk 0:01:17.8]} 26. Re3 {[%clk
0:00:43.3]} 26... Qg1 {[%clk 0:01:10.4]} 27. Rxe5 {[%clk 0:00:39.2]} 27... Rf2+
{[%clk 0:01:00.9]} 28. Kd3 {[%clk 0:00:39.4]} 28... Qg3+ {[%clk 0:00:59.4]} 29.
Re3 {[%clk 0:00:36.7]} 29... Qf4 {[%clk 0:00:50.4]} 30. Qe4 {[%clk 0:00:27.6]}
30... Qf8 {[%clk 0:00:47.8]} 31. Qxe7 {[%clk 0:00:26.4]} 1-0